bitfinex/quotes_BTCUSD_20220207
["timestamp","ask_amount","ask_price","bid_price","bid_amount"]
[1644209624164,0.00055081,42835.0,42831.0,0.22698783]
[1644209624366,0.00055081,42835.0,42831.0,0.27698783]
[1644209624564,0.00055081,42835.0,42833.0,0.013805]
[1644209624966,0.05,42834.0,42829.0,0.13587999]
[1644209625312,0.05,42831.0,42829.0,0.23587999]
[1644209625513,0.05,42831.0,42829.0,0.18587999]
[1644209625913,0.05,42831.0,42829.0,0.13887999]
[1644209626312,0.05,42831.0,42829.0,0.13687999]
[1644209626516,0.202769,42832.0,42829.0,0.13687999]
[1644209626713,0.202769,42832.0,42829.0,0.18687999]
[1644209626714,0.00016524,42832.0,42829.0,0.18687999]
[1644209627114,0.00016524,42832.0,42829.0,0.18387999]
[1644209627716,0.00027508,42834.0,42831.0,0.29089]
[1644209627918,0.05,42832.0,42829.0,0.13887999]
[1644209628120,0.00016524,42833.0,42829.0,0.13887999]
[1644209628315,0.00016524,42833.0,42829.0,0.18887999]
[1644209628917,0.00027508,42834.0,42829.0,0.18887999]
[1644209629174,0.00055081,42833.0,42829.0,0.18387999]
[1644209629875,0.07482589,42833.0,42829.0,0.18487999]
[1644209630171,0.07427508,42833.0,42829.0,0.18487999]
[1644209630370,0.07482589,42833.0,42829.0,0.18487999]
[1644209631174,0.07482589,42833.0,42829.0,0.049]
[1644209631175,0.05,42831.0,42829.0,0.049]
[1644209631378,0.326601,42830.0,42829.0,0.001]
[1644209631573,0.373301,42830.0,42829.0,0.001]
[1644209631775,0.373301,42830.0,42819.0,0.05046]
[1644209631972,0.19381988,42828.0,42821.0,0.26131903]
[1644209632172,0.0467,42827.0,42821.0,0.26131903]
[1644209632375,0.19127061,42827.0,42824.0,0.0785454]
[1644209632675,0.0467,42826.0,42824.0,0.0785454]
[1644209632911,0.00027508,42829.0,42825.0,0.326601]
[1644209633109,0.00027508,42827.0,42825.0,0.326601]
[1644209633308,0.00027508,42829.0,42825.0,0.326601]
[1644209633508,0.00027508,42830.0,42825.0,0.326601]
[1644209633711,0.04697508,42831.0,42825.0,0.326601]
[1644209633909,0.02,42829.0,42825.0,0.2804524]
[1644209634109,0.02,42829.0,42826.0,0.326601]
[1644209634312,0.02027508,42829.0,42826.0,0.376601]
[1644209634509,0.02,42829.0,42827.0,0.01386]
[1644209635109,0.00016523,42832.0,42827.0,0.01386]
[1644209635310,0.00027508,42830.0,42824.0,0.1785454]
[1644209635510,0.00044031,42832.0,42826.0,0.05]
[1644209635711,0.00016523,42832.0,42826.0,0.05]
[1644209635910,0.019,42830.0,42826.0,0.05]
[1644209636573,0.01927508,42830.0,42828.0,0.2022108]
[1644209636763,0.019,42830.0,42828.0,0.3022108]
[1644209637161,0.00027508,42831.0,42828.0,0.3022108]
[1644209637361,0.00027508,42833.0,42828.0,0.3022108]
[1644209637561,0.21295278,42834.0,42828.0,0.05]
[1644209637562,0.00016524,42832.0,42828.0,0.05]
[1644209637962,0.00016524,42832.0,42828.0,0.001]
[1644209638163,0.19023363,42830.0,42828.0,0.001]
[1644209638564,0.05027508,42831.0,42828.0,0.001]
[1644209638764,0.05,42831.0,42828.0,0.001]
[1644209639167,0.05,42831.0,42826.0,0.15]
[1644209639370,0.05027508,42831.0,42828.0,0.13183455]
[1644209639572,0.05,42831.0,42828.0,0.13183455]
[1644209639968,0.101,42831.0,42828.0,0.13183455]
[1644209640555,0.101,42831.0,42828.0,0.18183455]
[1644209640956,0.051,42831.0,42828.0,0.18183455]
[1644209641156,0.0505508,42832.0,42828.0,0.18183455]
[1644209641956,0.0985508,42832.0,42828.0,0.13183455]
[1644209642159,0.098,42832.0,42828.0,0.13183455]
[1644209642357,0.098,42832.0,42828.0,0.18183455]
[1644209642358,0.09855081,42832.0,42828.0,0.18183455]
[1644209643358,0.05,42832.0,42828.0,0.18183455]
[1644209643558,0.05055081,42832.0,42828.0,0.18183455]
[1644209644063,0.09755081,42832.0,42828.0,0.18183455]
[1644209644562,0.047,42832.0,42828.0,0.18183455]
[1644209644768,0.09755081,42832.0,42828.0,0.18183455]
[1644209645564,0.09755081,42832.0,42828.0,0.06384843]
[1644209645768,0.19778188,42828.0,42821.0,0.30139015]
[1644209646168,0.00027508,42831.0,42821.0,0.30139015]
[1644209646367,0.05,42831.0,42821.0,0.30139015]
[1644209646565,0.05027508,42831.0,42821.0,0.49980301]
[1644209646768,0.05027508,42831.0,42822.0,0.326601]
[1644209646969,0.05027508,42831.0,42826.0,0.0748206]
[1644209647169,0.22245463,42827.0,42826.0,0.1748206]
[1644209647911,0.034,42827.0,42826.0,0.1778206]
[1644209648113,0.034,42827.0,42826.0,0.5044216]
[1644209649113,0.00027508,42830.0,42826.0,0.5014216]
[1644209649316,0.21837893,42831.0,42826.0,0.1748206]
[1644209649514,0.00027508,42830.0,42826.0,0.1748206]
[1644209649714,0.26837893,42831.0,42826.0,0.1748206]
[1644209649914,0.00027508,42830.0,42826.0,0.1748206]
[1644209650117,0.30837893,42831.0,42826.0,0.1748206]
[1644209650314,0.00027508,42830.0,42826.0,0.1748206]
[1644209650513,0.30837893,42831.0,42826.0,0.1748206]
[1644209650714,0.00027508,42830.0,42826.0,0.1748206]
[1644209650914,0.30810385,42831.0,42826.0,0.1748206]
[1644209651117,0.30810385,42831.0,42819.0,0.00046]
[1644209651118,0.05,42827.0,42819.0,0.00046]
[1644209651315,0.26353266,42824.0,42821.0,0.05]
[1644209651583,0.376601,42822.0,42819.0,0.00046]
[1644209651971,0.25036428,42821.0,42819.0,0.00046]
[1644209652170,0.326601,42820.0,42819.0,0.00046]
[1644209652371,0.373301,42820.0,42819.0,0.00046]
[1644209653970,0.404301,42820.0,42819.0,0.00046]
[1644209654776,0.8,42819.0,42811.0,0.00260007]
[1644209654975,0.376601,42812.0,42811.0,0.00260007]
[1644209655176,0.62635744,42812.0,42811.0,0.00260007]
[1644209655415,0.62635744,42812.0,42805.0,0.05]
[1644209655416,0.72635744,42812.0,42805.0,0.05]
[1644209655616,0.05,42806.0,42805.0,0.05]
[1644209655815,0.0967,42806.0,42805.0,0.12367781]
[1644209656218,0.0467,42806.0,42805.0,0.12367781]
[1644209656817,0.0467,42806.0,42805.0,0.17367781]
[1644209657018,0.0467,42806.0,42805.0,0.22367781]
[1644209657418,0.0467,42806.0,42805.0,0.17367781]
[1644209657820,0.0467,42806.0,42805.0,0.22367781]
[1644209658019,0.0677,42806.0,42805.0,0.22367781]
[1644209659268,0.0677,42806.0,42805.0,0.17367781]
[1644209659269,0.0467,42806.0,42805.0,0.17367781]
[1644209659568,0.0467,42806.0,42805.0,0.15]
[1644209659770,0.0967,42806.0,42805.0,0.15]
[1644209659968,0.0607,42806.0,42805.0,0.15]
[1644209661170,0.0467,42806.0,42805.0,0.15]
[1644209661569,0.0467,42806.0,42805.0,0.220769]
[1644209661971,0.0527,42806.0,42805.0,0.220769]
[1644209663018,0.0527,42806.0,42805.0,0.120769]
[1644209663019,0.1027,42806.0,42805.0,0.120769]
[1644209663214,0.1027,42806.0,42805.0,0.05]
[1644209663418,0.326601,42805.0,42803.0,0.00069493]
[1644209663614,0.6302,42804.0,42803.0,0.00069493]
[1644209663814,0.6302,42804.0,42793.0,0.0521]
[1644209663815,1.31395259,42804.0,42793.0,0.0521]
[1644209664017,0.22662192,42801.0,42793.0,0.0521]
[1644209664213,0.373301,42800.0,42793.0,0.0521]
[1644209664413,0.373301,42800.0,42796.0,0.07196561]
[1644209664713,0.373301,42800.0,42793.0,0.0521]
[1644209664912,0.473301,42800.0,42793.0,0.0521]
[1644209665915,0.0467,42800.0,42796.0,0.08158656]
[1644209666113,0.326601,42799.0,42796.0,0.08158656]
[1644209666314,0.0467,42798.0,42796.0,0.08158656]
[1644209666572,0.326601,42797.0,42796.0,0.08158656]
[1644209666763,0.373301,42797.0,42796.0,0.08158656]
[1644209667564,0.368301,42797.0,42796.0,0.08158656]
[1644209667764,0.0467,42797.0,42796.0,0.08158656]
[1644209667964,0.0547,42797.0,42796.0,0.08158656]
[1644209668765,0.0547,42797.0,42796.0,0.18158656]
[1644209669264,0.0467,42797.0,42796.0,0.18158656]
[1644209670067,0.0547,42797.0,42796.0,0.05]
[1644209670313,0.0547,42797.0,42794.0,0.00069444]
[1644209670515,0.0547,42797.0,42794.0,0.05069444]
[1644209671014,0.0547,42797.0,42794.0,0.05]
[1644209671417,0.0467,42797.0,42794.0,0.11965012]
[1644209672017,0.0547,42797.0,42794.0,0.11965012]
[1644209672417,0.0547,42797.0,42794.0,0.05]
[1644209672418,0.1047,42797.0,42794.0,0.05]
[1644209672816,0.0547,42797.0,42794.0,0.05]
[1644209673419,0.0547,42797.0,42794.0,0.12737345]
[1644209674164,0.0627,42797.0,42794.0,0.12737345]
[1644209675364,0.0467,42797.0,42794.0,0.12737345]
[1644209675565,0.18314012,42818.0,42794.0,0.12737345]
[1644209675566,0.1644,42811.0,42794.0,0.12737345]
[1644209675766,0.05,42811.0,42794.0,0.12737345]
[1644209675970,0.05,42811.0,42795.0,0.29635461]
[1644209675971,0.3989,42810.0,42795.0,0.29635461]
[1644209676564,0.3989,42810.0,42803.0,0.08364935]
[1644209676565,0.21538583,42808.0,42803.0,0.08364935]
[1644209676768,0.326661,42807.0,42803.0,0.18364935]
[1644209676964,0.326661,42807.0,42803.0,0.23364935]
[1644209677365,0.326661,42807.0,42803.0,0.23434368]
[1644209677813,0.21538583,42808.0,42803.0,0.23434368]
[1644209678016,0.007,42807.0,42803.0,0.23434368]
[1644209678214,0.007,42807.0,42803.0,0.23364935]
[1644209678414,0.007,42807.0,42803.0,0.23434368]
[1644209678814,0.007,42807.0,42803.0,0.18434368]
[1644209679216,0.21538583,42808.0,42803.0,0.18434368]
[1644209679516,0.21538583,42808.0,42803.0,0.18364935]
[1644209679517,0.26538583,42808.0,42803.0,0.18364935]
[1644209679717,0.26538583,42808.0,42803.0,0.1343163]
[1644209679917,0.21538583,42808.0,42803.0,0.1343163]
[1644209680117,0.22238583,42808.0,42803.0,0.1343163]
[1644209680519,0.326661,42807.0,42803.0,0.1343163]
[1644209680718,0.326661,42807.0,42803.0,0.13364935]
[1644209680920,0.007,42808.0,42803.0,0.18431629]
[1644209681121,0.007,42808.0,42803.0,0.23431629]
[1644209681322,0.05,42813.0,42804.0,0.27882031]
[1644209681570,0.05,42813.0,42804.0,0.28427419]
[1644209681965,0.26964518,42813.0,42804.0,0.1993579]
[1644209682166,0.326661,42812.0,42806.0,0.00066692]
[1644209682565,0.26964518,42813.0,42806.0,0.00066692]
[1644209683168,0.326661,42812.0,42803.0,0.23364935]
[1644209683367,0.326661,42812.0,42806.0,0.00064534]
[1644209683565,0.2239502,42807.0,42806.0,0.00064534]
[1644209683772,0.6,42806.0,42803.0,0.15]
[1644209684170,0.326661,42805.0,42803.0,0.15]
[1644209684769,0.55694673,42805.0,42803.0,0.15]
[1644209685417,0.55694673,42805.0,42804.0,0.05]
[1644209685618,0.60694673,42805.0,42803.0,0.05]
[1644209686017,0.61494673,42805.0,42803.0,0.05]
[1644209687916,0.60694673,42805.0,42803.0,0.05]
[1644209688118,0.62694673,42805.0,42803.0,0.05]
[1644209688918,0.396661,42805.0,42803.0,0.05]
[1644209689365,0.376661,42805.0,42803.0,0.05]
[1644209689965,0.388661,42805.0,42803.0,0.05]
[1644209690866,0.388661,42805.0,42802.0,0.00069468]
[1644209691067,0.062,42805.0,42802.0,0.00069468]
[1644209691267,0.20687862,42808.0,42802.0,0.00069468]
[1644209691469,0.326661,42805.0,42800.0,0.22618449]
[1644209691669,0.05,42806.0,42801.0,0.00069469]
[1644209692066,0.011,42805.0,42801.0,0.00069469]
[1644209692668,0.011,42805.0,42799.0,0.16888855]
[1644209692918,0.011,42805.0,42801.0,0.00069469]
[1644209693217,0.23011346,42805.0,42801.0,0.00069469]
[1644209693518,0.05,42802.0,42801.0,0.00069469]
[1644209693919,0.05,42802.0,42799.0,0.11888855]
[1644209694118,0.061,42802.0,42799.0,0.11958326]
[1644209694322,0.011,42802.0,42799.0,0.11958326]
[1644209694720,0.011,42802.0,42800.0,0.326661]
[1644209694918,0.011,42802.0,42801.0,0.27622777]
[1644209695121,0.2377205,42809.0,42801.0,0.29526277]
[1644209695319,0.2377205,42809.0,42802.0,0.326644]
[1644209695521,0.2377205,42809.0,42804.0,0.019029]
[1644209695720,0.2377205,42809.0,42803.0,0.22760945]
[1644209695919,0.2377205,42809.0,42801.0,0.37622777]
[1644209696118,0.2467205,42809.0,42801.0,0.37622777]
[1644209696320,0.2467205,42809.0,42806.0,0.13083263]
[1644209696570,0.326661,42808.0,42806.0,0.13083263]
[1644209696766,0.326661,42808.0,42806.0,0.08083263]
[1644209697166,0.326661,42808.0,42806.0,0.13083263]
[1644209697366,0.326661,42808.0,42806.0,0.08083263]
[1644209697567,0.376661,42808.0,42806.0,0.08083263]
[1644209698268,0.341661,42808.0,42806.0,0.13083263]
[1644209698469,0.326661,42807.0,42806.0,0.13083263]
[1644209698768,0.015,42808.0,42806.0,0.13083263]
[1644209699368,0.326661,42810.0,42806.0,0.13083263]
[1644209699768,0.326661,42810.0,42806.0,0.08083263]
[1644209700169,0.326661,42810.0,42800.0,0.19613391]
[1644209700170,0.336661,42810.0,42804.0,0.00065343]
[1644209700415,0.05,42807.0,42804.0,0.00065343]
[1644209700915,0.01,42810.0,42804.0,0.00065343]
[1644209701116,0.01,42810.0,42800.0,0.19613391]
[1644209701319,0.25386689,42813.0,42803.0,0.00065343]
[1644209701519,0.05,42807.0,42806.0,0.07175044]
[1644209701818,0.05,42807.0,42806.0,0.12175044]
[1644209702021,0.061,42807.0,42806.0,0.05]
[1644209702222,0.061,42807.0,42804.0,0.05]
[1644209702419,0.011,42807.0,42804.0,0.00065343]
[1644209702619,0.011,42807.0,42804.0,0.05065343]
[1644209703520,0.25386689,42813.0,42804.0,0.05]
[1644209703719,0.25386689,42813.0,42807.0,0.13247608]
[1644209703921,0.05,42810.0,42804.0,0.05]
[1644209704185,0.326661,42812.0,42803.0,0.05065343]
[1644209704186,0.326661,42804.0,42803.0,0.05065343]
[1644209704383,0.373361,42804.0,42803.0,0.00065343]
[1644209704784,0.0467,42804.0,42793.0,0.0521]
[1644209704983,0.0467,42804.0,42801.0,0.00064673]
[1644209704984,0.05,42803.0,42801.0,0.00064673]
[1644209705182,0.373361,42802.0,42801.0,0.00064673]
[1644209705581,0.373361,42802.0,42801.0,0.00049177]
[1644209705983,0.373361,42802.0,42793.0,0.28717075]
[1644209706185,0.0707,42802.0,42793.0,0.28717075]
[1644209706785,0.0707,42802.0,42793.0,0.38717075]
[1644209706987,0.23677802,42799.0,42793.0,0.38717075]
[1644209707187,0.23677802,42799.0,42797.0,0.06367794]
[1644209707388,0.0467,42802.0,42797.0,0.06367794]
[1644209708020,0.0557,42802.0,42797.0,0.06367794]
[1644209708622,0.0557,42802.0,42800.0,0.24740727]
[1644209708821,0.009,42802.0,42800.0,0.24740727]
[1644209709019,0.009,42802.0,42801.0,0.326661]
[1644209709420,0.29642403,42807.0,42804.0,0.08738356]
[1644209709820,0.326661,42806.0,42804.0,0.08738356]
[1644209711328,0.326661,42806.0,42803.0,0.05]
[1644209712168,0.343661,42806.0,42803.0,0.05]
[1644209713471,0.326661,42806.0,42803.0,0.05]
[1644209714071,0.341661,42806.0,42803.0,0.05]
[1644209715315,0.326661,42806.0,42803.0,0.05]
[1644209716218,0.342661,42806.0,42803.0,0.05]
[1644209718119,0.341661,42806.0,42803.0,0.05]
[1644209718318,0.015,42806.0,42803.0,0.05]
[1644209719169,0.015,42806.0,42805.0,0.26491271]
[1644209719369,0.05,42807.0,42805.0,0.26491271]
[1644209719566,0.05,42807.0,42805.0,0.22491271]
[1644209720166,0.057,42807.0,42805.0,0.22491271]
[1644209720370,0.057,42807.0,42803.0,0.05]
[1644209720969,0.007,42807.0,42803.0,0.1]
[1644209721167,0.007,42807.0,42803.0,0.37875866]
[1644209721369,0.05,42810.0,42803.0,0.37875866]
[1644209722266,0.058,42810.0,42803.0,0.42875866]
[1644209722918,0.008,42810.0,42803.0,0.42875866]
[1644209723114,0.008,42810.0,42809.0,0.06559033]
[1644209723316,0.008,42810.0,42803.0,0.42875866]
[1644209723514,0.05,42812.0,42803.0,0.42875866]
[1644209723714,0.05,42812.0,42803.0,0.41734578]
[1644209724117,0.058,42812.0,42803.0,0.41734578]
[1644209724719,0.008,42812.0,42811.0,0.0848267]
[1644209724919,0.008,42812.0,42811.0,0.40076362]
[1644209725121,0.008,42812.0,42811.0,0.77742462]
[1644209725322,0.008,42812.0,42811.0,0.82742462]
[1644209725526,0.20032105,42828.0,42811.0,0.87412462]
[1644209725819,0.05,42830.0,42823.0,0.08875091]
[1644209725820,0.20032105,42829.0,42823.0,0.08875091]
[1644209726018,0.00027508,42829.0,42823.0,0.08875091]
[1644209726217,0.00027508,42830.0,42823.0,0.08875091]
[1644209726577,0.326661,42830.0,42826.0,0.05]
[1644209726770,0.45375007,42829.0,42826.0,0.05]
[1644209726969,0.326661,42828.0,42826.0,0.05]
[1644209727170,0.05,42827.0,42815.0,0.0967]
[1644209727370,0.05,42821.0,42815.0,0.0967]
[1644209727570,0.05,42821.0,42816.0,0.326661]
[1644209727769,0.00027508,42827.0,42817.0,0.018881]
[1644209727770,0.05,42825.0,42817.0,0.018881]
[1644209727970,0.23237005,42822.0,42815.0,0.1467]
[1644209728174,0.25702165,42821.0,42817.0,0.08138225]
[1644209728371,0.25702165,42821.0,42818.0,0.05]
[1644209728770,0.25702165,42821.0,42815.0,0.05]
[1644209729371,0.22202165,42821.0,42815.0,0.1]
[1644209729571,0.00055575,42822.0,42816.0,0.27876013]
[1644209729773,0.00055575,42822.0,42817.0,0.376661]
[1644209729974,0.00027508,42829.0,42818.0,0.05]
[1644209730174,0.00027508,42827.0,42819.0,0.38702192]
[1644209730422,0.00055575,42821.0,42820.0,0.07484291]
[1644209730622,0.00055575,42821.0,42820.0,0.75267729]
[1644209730826,0.00055575,42821.0,42820.0,0.80267729]
[1644209731223,0.2538546,42823.0,42820.0,0.80267729]
[1644209731424,0.25441035,42823.0,42820.0,0.80267729]
[1644209731622,0.00055575,42823.0,42821.0,0.018873]
[1644209731825,0.00055575,42823.0,42821.0,0.065573]
[1644209732022,0.00055575,42823.0,42822.0,0.61501951]
[1644209732222,0.00655575,42823.0,42822.0,0.66501951]
[1644209732423,0.006,42823.0,42822.0,0.66501951]
[1644209732622,0.006,42823.0,42822.0,0.92611444]
[1644209733022,0.006,42823.0,42822.0,0.66501951]
[1644209733425,0.00055575,42825.0,42822.0,0.66501951]
[1644209733625,0.00027508,42832.0,42823.0,0.326608]
[1644209733823,0.19086296,42833.0,42828.0,0.07461475]
[1644209733824,0.25075931,42831.0,42828.0,0.07461475]
[1644209734268,0.01227508,42832.0,42828.0,0.07461475]
[1644209734466,0.012,42832.0,42828.0,0.07461475]
[1644209734667,0.01227508,42832.0,42828.0,0.07461475]
[1644209734868,0.01227508,42832.0,42828.0,0.12461475]
[1644209735068,0.01283083,42832.0,42828.0,0.12461475]
[1644209735272,0.01283083,42832.0,42829.0,0.0467]
[1644209735273,0.01255575,42832.0,42829.0,0.0467]
[1644209735468,0.00055575,42832.0,42830.0,0.29621609]
[1644209735667,0.00055575,42832.0,42831.0,0.0467]
[1644209735869,0.00027508,42837.0,42831.0,0.3472072]
[1644209736074,0.12,42839.0,42831.0,0.0467]
[1644209736075,0.23073072,42833.0,42831.0,0.0467]
[1644209736272,0.055,42832.0,42831.0,0.0537]
[1644209736673,0.27454936,42832.0,42831.0,0.007]
[1644209736874,0.60121036,42832.0,42831.0,0.007]
[1644209737074,0.9827234,42832.0,42831.0,0.007]
[1644209737272,1.0327234,42832.0,42831.0,0.007]
[1644209737474,1.0327234,42832.0,42826.0,0.05]
[1644209737475,0.326661,42830.0,42826.0,0.05]
[1644209737675,0.376661,42827.0,42826.0,0.05]
[1644209737920,0.423361,42827.0,42826.0,0.05]
[1644209738218,0.439361,42827.0,42826.0,0.05]
[1644209739618,0.423361,42827.0,42826.0,0.05]
[1644209740018,0.0967,42827.0,42826.0,0.05]
[1644209740218,0.1117,42827.0,42826.0,0.05]
[1644209741580,0.0967,42827.0,42826.0,0.05]
[1644209741971,0.0467,42827.0,42826.0,0.05]
[1644209742172,0.015,42827.0,42826.0,0.65228861]
[1644209743173,0.015,42827.0,42826.0,0.75228861]
[1644209744173,0.00016889,42829.0,42827.0,0.018788]
[1644209744373,0.05,42835.0,42827.0,0.018788]
[1644209744573,0.0002771,42830.0,42827.0,0.018788]
[1644209744872,0.00016889,42829.0,42827.0,0.018788]
[1644209745620,0.0002771,42835.0,42827.0,0.018788]
[1644209745820,0.0002771,42835.0,42833.0,0.08523958]
[1644209746021,0.0002771,42835.0,42834.0,0.05]
[1644209746220,0.05,42836.0,42834.0,0.05]
[1644209748224,0.068,42836.0,42834.0,0.05]
[1644209749467,0.05,42836.0,42834.0,0.05]
[1644209749969,0.05055533,42837.0,42834.0,0.32461347]
[1644209750169,0.05055533,42837.0,42835.0,0.326661]
[1644209750367,0.039,42836.0,42835.0,0.326661]
[1644209750869,0.039,42836.0,42834.0,0.05]
[1644209751470,0.05,42837.0,42834.0,0.05]
[1644209751676,0.05,42837.0,42833.0,0.08523958]
[1644209752373,0.07,42837.0,42833.0,0.08523958]
[1644209752571,0.05,42836.0,42833.0,0.08523958]
[1644209752822,0.02,42837.0,42833.0,0.08523958]
[1644209753021,0.05,42836.0,42833.0,0.08523958]
[1644209753221,0.05,42836.0,42829.0,0.23759329]
[1644209753222,0.35,42835.0,42829.0,0.23759329]
[1644209753622,0.0002771,42835.0,42829.0,0.23759329]
[1644209754026,0.0002771,42835.0,42830.0,0.06758629]
[1644209754226,0.00055644,42834.0,42830.0,0.06758629]
[1644209754627,0.05,42832.0,42829.0,0.011]
[1644209754829,0.326661,42830.0,42829.0,0.011]
[1644209755030,0.62397175,42830.0,42829.0,0.011]
[1644209755227,0.29731075,42830.0,42829.0,0.006]
[1644209755425,0.0002771,42832.0,42829.0,0.006]
[1644209755626,0.0002771,42832.0,42825.0,0.08658351]
[1644209755627,0.23567591,42831.0,42825.0,0.08658351]
[1644209756029,0.23595301,42831.0,42825.0,0.08658351]
[1644209756226,0.26195301,42831.0,42825.0,0.08658351]
[1644209756670,0.26223234,42831.0,42825.0,0.08658351]
[1644209757172,0.26223234,42831.0,42821.0,0.21980039]
[1644209757570,0.23623234,42831.0,42817.0,0.5584]
[1644209757768,0.23567591,42831.0,42817.0,0.5584]
[1644209757969,0.23623231,42831.0,42817.0,0.5584]
[1644209758370,0.23623231,42831.0,42824.0,0.07803431]
[1644209758873,0.23623231,42831.0,42817.0,0.6494]
[1644209758874,0.23567591,42831.0,42818.0,0.26700393]
[1644209759070,0.23623233,42831.0,42818.0,0.26700393]
[1644209759475,0.23623233,42831.0,42818.0,0.31700393]
[1644209759873,0.23623233,42831.0,42825.0,0.06794981]
[1644209760075,0.23567591,42831.0,42825.0,0.06794981]
[1644209760317,0.23623229,42831.0,42825.0,0.06794981]
[1644209761319,0.23567591,42831.0,42825.0,0.06794981]
[1644209761521,0.23623234,42831.0,42825.0,0.06794981]
[1644209762321,0.25523234,42831.0,42825.0,0.07094981]
[1644209762522,0.019,42831.0,42825.0,0.07094981]
[1644209762722,0.01955643,42831.0,42825.0,0.07094981]
[1644209763523,0.00055643,42831.0,42825.0,0.06794981]
[1644209763722,0.0002771,42832.0,42825.0,0.26053875]
[1644209763922,0.00016693,42831.0,42825.0,0.26053875]
[1644209764369,0.3679381,42832.0,42831.0,0.00083307]
[1644209764571,0.367661,42832.0,42831.0,0.00083307]
[1644209765270,0.041,42832.0,42831.0,0.00083307]
[1644209765469,0.26605439,42833.0,42831.0,0.00083307]
[1644209766273,0.024,42833.0,42831.0,0.00083307]
[1644209767674,0.0002771,42834.0,42831.0,0.00083307]
[1644209767919,0.0502771,42835.0,42831.0,0.00083307]
[1644209768122,0.326661,42834.0,42831.0,0.00083307]
[1644209768320,0.350661,42834.0,42831.0,0.00083307]
[1644209768722,0.05,42832.0,42831.0,0.00083307]
[1644209768922,0.376661,42832.0,42831.0,0.00083307]
[1644209770325,0.066,42832.0,42831.0,0.00083307]
[1644209771576,0.05,42832.0,42831.0,0.00083307]
[1644209772369,0.082,42832.0,42831.0,0.00383307]
[1644209772970,0.408661,42832.0,42831.0,0.00383307]
[1644209773672,0.376661,42832.0,42831.0,0.00083307]
[1644209773969,0.045,42832.0,42831.0,0.00083307]
[1644209774369,0.077,42832.0,42831.0,0.00383307]
[1644209774771,0.403661,42832.0,42831.0,0.00383307]
[1644209775621,0.403661,42832.0,42831.0,0.00083307]
[1644209775622,0.326661,42832.0,42831.0,0.00083307]
[1644209775820,0.00046051,42834.0,42831.0,0.00083307]
[1644209775821,0.32712151,42834.0,42831.0,0.00083307]
[1644209776021,0.32758202,42834.0,42831.0,0.00083307]
[1644209776223,0.32712151,42834.0,42831.0,0.00583307]
[1644209776422,0.02446051,42834.0,42831.0,0.00083307]
[1644209777023,0.024,42834.0,42831.0,0.00083307]
[1644209777523,0.04573761,42835.0,42831.0,0.00083307]
[1644209777928,0.326661,42834.0,42831.0,0.00083307]
[1644209778126,0.23487849,42829.0,42827.0,0.00033193]
[1644209778526,0.045,42832.0,42827.0,0.00033193]
[1644209778925,0.045,42832.0,42827.0,0.00533193]
[1644209779177,0.0002771,42834.0,42830.0,0.005]
[1644209779377,0.07413744,42835.0,42830.0,0.005]
[1644209779573,0.0002771,42834.0,42830.0,0.005]
[1644209779774,0.00013744,42833.0,42830.0,0.005]
[1644209780276,0.00013744,42833.0,42832.0,0.08798391]
[1644209780578,0.01313744,42833.0,42832.0,0.08798391]
[1644209780776,0.013,42833.0,42830.0,0.015]
[1644209780978,0.20566495,42833.0,42830.0,0.01]
[1644209781377,0.013,42833.0,42830.0,0.01]
[1644209781575,0.0002771,42834.0,42827.0,0.00533193]
[1644209781776,0.04515755,42835.0,42829.0,0.05]
[1644209781977,0.0002771,42834.0,42831.0,0.06732851]
[1644209782176,0.00052514,42833.0,42831.0,0.06732851]
[1644209783224,0.0002771,42834.0,42831.0,0.06732851]
[1644209783421,0.00052515,42834.0,42829.0,0.059]
[1644209783722,0.00052515,42834.0,42831.0,0.00035227]
[1644209783723,0.04580225,42834.0,42831.0,0.00035227]
[1644209783922,0.04552515,42834.0,42831.0,0.00035227]
[1644209784321,0.1,42834.0,42831.0,0.00135227]
[1644209785726,0.1,42834.0,42831.0,0.00035227]
[1644209785727,0.045,42834.0,42831.0,0.00035227]
[1644209786423,0.07,42834.0,42831.0,0.00035227]
[1644209787674,0.045,42834.0,42831.0,0.00035227]
[1644209788476,0.076,42834.0,42831.0,0.00035227]
[1644209788679,0.00070454,42828.0,42827.0,0.00033193]
[1644209788878,0.55340494,42828.0,42827.0,0.00033193]
[1644209789080,0.90083897,42828.0,42827.0,0.00033193]
[1644209789279,1.12261603,42828.0,42827.0,0.00033193]
[1644209789679,0.85087209,42828.0,42827.0,0.00033193]
[1644209789878,0.54843806,42828.0,42827.0,0.00033193]
[1644209790345,0.56543806,42828.0,42827.0,0.00033193]
[1644209790546,0.23877706,42828.0,42827.0,0.00033193]
[1644209790849,0.50599646,42828.0,42827.0,0.00033193]
[1644209792247,0.48899646,42828.0,42827.0,0.00033193]
[1644209792448,0.50699646,42828.0,42827.0,0.00033193]
[1644209792948,0.87865746,42828.0,42827.0,0.00033193]
[1644209793153,1.21328554,42828.0,42827.0,0.00033193]
[1644209793354,1.26328554,42828.0,42827.0,0.00033193]
[1644209793549,1.21328554,42828.0,42827.0,0.00033193]
[1644209793751,1.19528554,42828.0,42827.0,0.00033193]
[1644209793951,1.19348462,42828.0,42827.0,0.00033193]
[1644209794174,0.90735746,42828.0,42827.0,0.00033193]
[1644209794373,1.21323356,42828.0,42827.0,0.00033193]
[1644209795773,0.90735746,42828.0,42827.0,0.00033193]
[1644209795974,1.19532257,42828.0,42827.0,0.00033193]
[1644209796273,0.90735746,42828.0,42827.0,0.00033193]
[1644209796473,0.91935746,42828.0,42827.0,0.00033193]
[1644209797475,1.2058272,42828.0,42827.0,0.00033193]
[1644209797674,1.1938272,42828.0,42827.0,0.00033193]
[1644209797923,0.90735746,42828.0,42827.0,0.00033193]
[1644209798325,1.47461777,42828.0,42815.0,0.005]
[1644209798527,0.045,42824.0,42815.0,0.005]
[1644209798725,0.0467,42823.0,42815.0,0.005]
[1644209799328,0.0467,42823.0,42818.0,0.08181833]
[1644209800128,0.0467,42823.0,42819.0,0.005]